[Event "*** Titled Tuesday Blitz"]
[Site "Chess.com"]
[Date "2019.03.05"]
[Round "4"]
[White "albi1999"]
[Black "NIGWAPO"]
[Result "1-0"]
[WhiteElo "2433"]
[BlackElo "2552"]
[TimeControl "180+2"]
[EndTime "13:52:55 PST"]
[Termination "albi1999 won by resignation"]

1. d4 {[%clk 0:03:01.9]} 1... Nf6 {[%clk 0:03:01.9]} 2. c4 {[%clk 0:02:58.2]}
2... e6 {[%clk 0:03:03]} 3. Nf3 {[%clk 0:02:52.7]} 3... b6 {[%clk 0:02:33.1]} 4.
g3 {[%clk 0:02:52.9]} 4... Bb7 {[%clk 0:02:34.2]} 5. Bg2 {[%clk 0:02:54.1]} 5...
Be7 {[%clk 0:02:35.9]} 6. O-O {[%clk 0:02:55.1]} 6... O-O {[%clk 0:02:37.5]} 7.
Nc3 {[%clk 0:02:56.7]} 7... Ne4 {[%clk 0:02:39.1]} 8. Bd2 {[%clk 0:02:58.2]}
8... Nxd2 {[%clk 0:02:39.7]} 9. Qxd2 {[%clk 0:03:00.1]} 9... d6 {[%clk
0:02:40.5]} 10. e4 {[%clk 0:03:01.4]} 10... Nd7 {[%clk 0:02:42]} 11. Rad1 {[%clk
0:03:02.7]} 11... e5 {[%clk 0:02:43.5]} 12. Rfe1 {[%clk 0:03:03.6]} 12... exd4
{[%clk 0:02:44.3]} 13. Nxd4 {[%clk 0:03:04.8]} 13... Re8 {[%clk 0:02:46]} 14. b3
{[%clk 0:03:04.6]} 14... Ne5 {[%clk 0:02:47.1]} 15. h3 {[%clk 0:03:04.5]} 15...
a6 {[%clk 0:02:40.7]} 16. Kh2 {[%clk 0:03:03.4]} 16... Qd7 {[%clk 0:02:36.9]}
17. f4 {[%clk 0:02:55.6]} 17... Ng6 {[%clk 0:02:37.7]} 18. Nd5 {[%clk
0:02:53.2]} 18... h5 {[%clk 0:02:34]} 19. Nf5 {[%clk 0:02:49.5]} 19... Bd8
{[%clk 0:02:29.8]} 20. Qb2 {[%clk 0:02:43.5]} 20... f6 {[%clk 0:02:24.3]} 21.
Qe2 {[%clk 0:02:41.8]} 21... h4 {[%clk 0:02:25]} 22. gxh4 {[%clk 0:02:38.3]}
22... Bxd5 {[%clk 0:02:21.4]} 23. cxd5 {[%clk 0:02:37.9]} 23... Nxf4 {[%clk
0:02:20.7]} 24. Qg4 {[%clk 0:02:38.3]} 24... Nxg2 {[%clk 0:02:18.9]} 25. Qxg2
{[%clk 0:02:36.1]} 25... Re5 {[%clk 0:02:19]} 26. Rg1 {[%clk 0:02:34.3]} 26...
g5 {[%clk 0:02:17.8]} 27. hxg5 {[%clk 0:02:33.2]} 27... fxg5 {[%clk 0:02:19.7]}
28. Rdf1 {[%clk 0:02:31.9]} 28... Qh7 {[%clk 0:02:17.8]} 29. Rf4 {[%clk
0:02:16.6]} 29... Be7 {[%clk 0:02:06]} 30. Rg4 {[%clk 0:02:14.9]} 30... Rxf5
{[%clk 0:02:03.6]} 31. exf5 {[%clk 0:02:14.5]} 31... Qxf5 {[%clk 0:02:05.3]} 32.
Qe4 {[%clk 0:02:14.1]} 32... Qxe4 {[%clk 0:02:05.3]} 33. Rxe4 {[%clk 0:02:16]}
33... Bf6 {[%clk 0:02:06.6]} 34. Re6 {[%clk 0:02:15.4]} 34... Kg7 {[%clk
0:02:05.9]} 35. Rc1 {[%clk 0:02:12.8]} 35... Rc8 {[%clk 0:02:04.5]} 36. Kg2
{[%clk 0:02:13.7]} 36... Kg6 {[%clk 0:01:59.8]} 37. Rxd6 {[%clk 0:02:10.6]}
37... cxd6 {[%clk 0:01:57.9]} 38. Rxc8 {[%clk 0:02:10.8]} 38... Kf5 {[%clk
0:01:59.5]} 39. Rc6 {[%clk 0:02:11]} 39... Ke5 {[%clk 0:01:58.6]} 40. Rxb6
{[%clk 0:02:11.4]} 40... Kxd5 {[%clk 0:02:00.5]} 1-0

[Event "*** Titled Tuesday Blitz"]
[Site "Chess.com"]
[Date "2019.03.05"]
[Round "4"]
[White "Cryptinz"]
[Black "INLOVEWITHF"]
[Result "1-0"]
[WhiteElo "2342"]
[BlackElo "2284"]
[TimeControl "180+2"]
[EndTime "13:53:02 PST"]
[Termination "Cryptinz won by resignation"]

1. e4 {[%clk 0:03:01.9]} 1... e5 {[%clk 0:02:59.9]} 2. Nf3 {[%clk 0:03:02.5]}
2... Nc6 {[%clk 0:03:00.5]} 3. Nc3 {[%clk 0:03:03.7]} 3... Nf6 {[%clk
0:03:01.1]} 4. d4 {[%clk 0:03:04.8]} 4... exd4 {[%clk 0:03:01.6]} 5. Nxd4 {[%clk
0:03:05.8]} 5... Bb4 {[%clk 0:03:02.7]} 6. Nxc6 {[%clk 0:03:06.2]} 6... bxc6
{[%clk 0:03:03.9]} 7. Bd3 {[%clk 0:03:01]} 7... d5 {[%clk 0:03:04.6]} 8. exd5
{[%clk 0:03:01.2]} 8... O-O {[%clk 0:03:05]} 9. O-O {[%clk 0:02:59.4]} 9... Bg4
{[%clk 0:03:05.6]} 10. f3 {[%clk 0:02:58]} 10... Bh5 {[%clk 0:03:05.6]} 11. dxc6
{[%clk 0:02:58.4]} 11... Qd4+ {[%clk 0:02:56]} 12. Kh1 {[%clk 0:02:58]} 12...
Bxc3 {[%clk 0:02:57.5]} 13. bxc3 {[%clk 0:02:59.6]} 13... Qxc3 {[%clk
0:02:59.2]} 14. Rb1 {[%clk 0:02:40.6]} 14... Qxc6 {[%clk 0:02:59.2]} 15. Bb2
{[%clk 0:02:41.4]} 15... Bg6 {[%clk 0:02:57.5]} 16. Qd2 {[%clk 0:02:22.3]} 16...
Rad8 {[%clk 0:02:53.3]} 17. Rfc1 {[%clk 0:02:15.2]} 17... Rfe8 {[%clk
0:02:48.8]} 18. Qg5 {[%clk 0:02:15.6]} 18... Rd5 {[%clk 0:02:46.8]} 19. Qg3
{[%clk 0:02:13.5]} 19... Nh5 {[%clk 0:02:38.4]} 20. Qg4 {[%clk 0:02:11.3]} 20...
Qd7 {[%clk 0:02:26.2]} 21. Bc4 {[%clk 0:02:01.7]} 21... Rd6 {[%clk 0:02:16.3]}
22. Qxd7 {[%clk 0:02:00.8]} 22... Rxd7 {[%clk 0:02:17.3]} 23. Bb5 {[%clk
0:02:01.9]} 23... Rde7 {[%clk 0:02:05]} 24. Bxe8 {[%clk 0:02:02.1]} 24... Rxe8
{[%clk 0:02:06.9]} 25. Bd4 {[%clk 0:02:02.7]} 25... a6 {[%clk 0:02:03.3]} 26.
Rb7 {[%clk 0:02:02.9]} 26... Nf4 {[%clk 0:02:04]} 27. Rcb1 {[%clk 0:01:52.3]}
27... Bxc2 {[%clk 0:01:57.2]} 28. Rb8 {[%clk 0:01:52.4]} 1-0

[Event "*** Titled Tuesday Blitz"]
[Site "Chess.com"]
[Date "2019.03.05"]
[Round "4"]
[White "ahkashefi2800"]
[Black "BASSU1"]
[Result "1-0"]
[WhiteElo "2254"]
[BlackElo "2084"]
[TimeControl "180+2"]
[EndTime "13:53:22 PST"]
[Termination "ahkashefi2800 won by resignation"]

1. d4 {[%clk 0:02:57.7]} 1... d5 {[%clk 0:02:59.9]} 2. Nf3 {[%clk 0:02:56.2]}
2... e6 {[%clk 0:02:55.7]} 3. Bf4 {[%clk 0:02:54.1]} 3... Bd6 {[%clk 0:02:54.1]}
4. Bg3 {[%clk 0:02:54.8]} 4... Nf6 {[%clk 0:02:54.8]} 5. Nbd2 {[%clk 0:02:55]}
5... O-O {[%clk 0:02:55.4]} 6. e3 {[%clk 0:02:56.2]} 6... c5 {[%clk 0:02:56.4]}
7. c3 {[%clk 0:02:57.4]} 7... Nc6 {[%clk 0:02:57.3]} 8. Bd3 {[%clk 0:02:58.3]}
8... Re8 {[%clk 0:02:58]} 9. O-O {[%clk 0:02:58.7]} 9... h6 {[%clk 0:02:47.7]}
10. Ne5 {[%clk 0:02:59.3]} 10... Bxe5 {[%clk 0:02:49.1]} 11. dxe5 {[%clk
0:03:01.2]} 11... Nd7 {[%clk 0:02:50.5]} 12. f4 {[%clk 0:03:02.1]} 12... c4
{[%clk 0:02:50.8]} 13. Bb1 {[%clk 0:02:56.2]} 13... Qb6 {[%clk 0:02:51.7]} 14.
Qc2 {[%clk 0:02:57.3]} 14... Nf8 {[%clk 0:02:42.2]} 15. Bf2 {[%clk 0:02:57.1]}
15... Qc7 {[%clk 0:02:42.2]} 16. Nf3 {[%clk 0:02:57.9]} 16... b5 {[%clk
0:02:43.1]} 17. Nd4 {[%clk 0:02:58.6]} 17... Nxd4 {[%clk 0:02:43.3]} 18. exd4
{[%clk 0:03:00.5]} 18... a5 {[%clk 0:02:43]} 19. Be1 {[%clk 0:02:58.7]} 19...
Bd7 {[%clk 0:02:41.7]} 20. Qf2 {[%clk 0:02:57.9]} 20... Qd8 {[%clk 0:02:41.8]}
21. Qg3 {[%clk 0:02:58.3]} 21... Qe7 {[%clk 0:02:41]} 22. Bd2 {[%clk 0:02:58.8]}
22... Kh8 {[%clk 0:02:40.6]} 23. f5 {[%clk 0:02:58]} 23... exf5 {[%clk
0:02:38.2]} 24. Bxf5 {[%clk 0:02:59.2]} 24... Bxf5 {[%clk 0:02:38.7]} 25. Rxf5
{[%clk 0:03:01.1]} 25... Qe6 {[%clk 0:02:21.2]} 26. Raf1 {[%clk 0:03:01.1]}
26... Ra7 {[%clk 0:02:22.2]} 27. Qf3 {[%clk 0:02:11.8]} 27... Kg8 {[%clk
0:02:19.9]} 28. Qg3 {[%clk 0:02:09.8]} 28... Qg6 {[%clk 0:02:20.8]} 29. Qf3
{[%clk 0:02:03.6]} 29... Ne6 {[%clk 0:02:19.3]} 30. h4 {[%clk 0:02:04.4]} 30...
Nf8 {[%clk 0:02:02.6]} 31. Qxd5 {[%clk 0:01:59]} 31... Rb8 {[%clk 0:02:00.2]}
32. Qf3 {[%clk 0:01:48.4]} 32... Rd8 {[%clk 0:01:54.9]} 33. Rf4 {[%clk
0:01:47.2]} 33... Rad7 {[%clk 0:01:52.6]} 34. Rg4 {[%clk 0:01:47.5]} 34... Qh5
{[%clk 0:01:53.6]} 35. Rxg7+ {[%clk 0:01:47.9]} 1-0

[Event "*** Titled Tuesday Blitz"]
[Site "Chess.com"]
[Date "2019.03.05"]
[Round "4"]
[White "Atanejhad"]
[Black "FedaMaster"]
[Result "0-1"]
[WhiteElo "2229"]
[BlackElo "2435"]
[TimeControl "180+2"]
[EndTime "13:53:23 PST"]
[Termination "FedaMaster won on time"]

1. d4 {[%clk 0:01:49.8]} 1... d5 {[%clk 0:02:56.5]} 2. c4 {[%clk 0:01:46.9]}
2... e5 {[%clk 0:02:57.1]} 3. dxe5 {[%clk 0:01:38.2]} 3... d4 {[%clk 0:02:59]}
4. Nf3 {[%clk 0:01:28.8]} 4... Nc6 {[%clk 0:03:00.9]} 5. a3 {[%clk 0:01:18.9]}
5... Nge7 {[%clk 0:03:00.4]} 6. b4 {[%clk 0:01:14.1]} 6... Ng6 {[%clk
0:03:01.9]} 7. Bb2 {[%clk 0:01:14.2]} 7... a5 {[%clk 0:03:03.3]} 8. b5 {[%clk
0:01:11.7]} 8... Ncxe5 {[%clk 0:03:04.8]} 9. Nxe5 {[%clk 0:01:08.5]} 9... Nxe5
{[%clk 0:03:06.7]} 10. e3 {[%clk 0:01:03.1]} 10... Be6 {[%clk 0:03:07]} 11. Nd2
{[%clk 0:00:59.1]} 11... dxe3 {[%clk 0:03:02.5]} 12. fxe3 {[%clk 0:00:59.2]}
12... Ng4 {[%clk 0:02:59]} 13. Qf3 {[%clk 0:00:47.6]} 13... Bc5 {[%clk
0:02:53.9]} 14. O-O-O {[%clk 0:00:45.6]} 14... Nxe3 {[%clk 0:02:53.6]} 15. Re1
{[%clk 0:00:38]} 15... Nxf1 {[%clk 0:02:53]} 16. Rhxf1 {[%clk 0:00:11.8]} 16...
O-O {[%clk 0:02:43]} 17. Qg3 {[%clk 0:00:06.8]} 17... g6 {[%clk 0:02:41.4]} 18.
Qe5 {[%clk 0:00:01.6]} 18... f6 {[%clk 0:02:25.9]} 0-1

[Event "*** Titled Tuesday Blitz"]
[Site "Chess.com"]
[Date "2019.03.05"]
[Round "4"]
[White "RegZryt"]
[Black "HanSchut"]
[Result "1-0"]
[WhiteElo "2454"]
[BlackElo "2327"]
[TimeControl "180+2"]
[EndTime "13:53:38 PST"]
[Termination "RegZryt won by resignation"]

1. d4 {[%clk 0:03:01.9]} 1... Nf6 {[%clk 0:03:00.1]} 2. c4 {[%clk 0:03:02.6]}
2... g6 {[%clk 0:03:01.5]} 3. Nc3 {[%clk 0:03:03.5]} 3... d5 {[%clk 0:03:03]} 4.
Nf3 {[%clk 0:03:04]} 4... Bg7 {[%clk 0:03:03.5]} 5. h4 {[%clk 0:03:05.4]} 5...
c6 {[%clk 0:02:53.5]} 6. Bg5 {[%clk 0:03:05.9]} 6... Ne4 {[%clk 0:02:50.6]} 7.
e3 {[%clk 0:03:04.6]} 7... O-O {[%clk 0:02:17.2]} 8. Bd3 {[%clk 0:03:01]} 8...
Nxg5 {[%clk 0:02:17.1]} 9. Nxg5 {[%clk 0:03:00.2]} 9... dxc4 {[%clk 0:01:42.4]}
10. Bxc4 {[%clk 0:03:00.5]} 10... b5 {[%clk 0:01:29.3]} 11. Bd3 {[%clk
0:02:57.6]} 11... e5 {[%clk 0:01:24.8]} 12. dxe5 {[%clk 0:02:54.1]} 12... Bxe5
{[%clk 0:01:26.7]} 13. Nf3 {[%clk 0:02:42]} 13... Bg4 {[%clk 0:01:13.7]} 14. Qc2
{[%clk 0:02:22.9]} 14... Nd7 {[%clk 0:00:56.1]} 15. h5 {[%clk 0:01:54.6]} 15...
Bxh5 {[%clk 0:00:49.3]} 16. Rxh5 {[%clk 0:01:54.1]} 16... gxh5 {[%clk
0:00:51.2]} 17. Bxh7+ {[%clk 0:01:55.5]} 17... Kh8 {[%clk 0:00:52.7]} 18. Bf5
{[%clk 0:01:54.4]} 18... Bxc3+ {[%clk 0:00:20]} 19. Qxc3+ {[%clk 0:01:55]} 19...
Nf6 {[%clk 0:00:21.5]} 20. Rd1 {[%clk 0:01:54.2]} 20... Qe7 {[%clk 0:00:18.3]}
21. Rd7 {[%clk 0:01:52.6]} 1-0

[Event "*** Titled Tuesday Blitz"]
[Site "Chess.com"]
[Date "2019.03.05"]
[Round "4"]
[White "payto1"]
[Black "TreinadorBR"]
[Result "1-0"]
[WhiteElo "2194"]
[BlackElo "2209"]
[TimeControl "180+2"]
[EndTime "13:53:38 PST"]
[Termination "payto1 won by resignation"]

1. d4 {[%clk 0:03:01.9]} 1... Nf6 {[%clk 0:02:59.7]} 2. Bg5 {[%clk 0:03:01.3]}
2... Ne4 {[%clk 0:02:57.2]} 3. Bf4 {[%clk 0:03:01.6]} 3... c5 {[%clk 0:02:58.6]}
4. f3 {[%clk 0:03:01.8]} 4... Nf6 {[%clk 0:02:58.9]} 5. d5 {[%clk 0:03:01.4]}
5... e6 {[%clk 0:02:57.9]} 6. e4 {[%clk 0:03:01.5]} 6... d6 {[%clk 0:02:58.7]}
7. Nc3 {[%clk 0:02:56.5]} 7... Be7 {[%clk 0:02:56.2]} 8. Bc4 {[%clk 0:02:53.4]}
8... exd5 {[%clk 0:02:55.2]} 9. Nxd5 {[%clk 0:02:52.2]} 9... Nxd5 {[%clk
0:02:55.7]} 10. Bxd5 {[%clk 0:02:53.3]} 10... O-O {[%clk 0:02:55.2]} 11. Ne2
{[%clk 0:02:53.8]} 11... Nc6 {[%clk 0:02:56.7]} 12. O-O {[%clk 0:02:50]} 12...
Be6 {[%clk 0:02:56.5]} 13. c3 {[%clk 0:02:42]} 13... Qc7 {[%clk 0:02:52.4]} 14.
Bg3 {[%clk 0:02:05]} 14... Rad8 {[%clk 0:02:51.5]} 15. Nf4 {[%clk 0:02:04.1]}
15... Qc8 {[%clk 0:02:49]} 16. Qb3 {[%clk 0:01:47.2]} 16... Na5 {[%clk
0:02:44.6]} 17. Qa4 {[%clk 0:01:33.1]} 17... b6 {[%clk 0:02:40.2]} 18. b4 {[%clk
0:01:26.9]} 18... Bxd5 {[%clk 0:02:27.9]} 19. Nxd5 {[%clk 0:01:27.2]} 19... Rfe8
{[%clk 0:01:44.8]} 20. bxa5 {[%clk 0:01:23.9]} 20... Bf8 {[%clk 0:01:44]} 21.
axb6 {[%clk 0:01:23.3]} 21... a6 {[%clk 0:01:43.5]} 22. Rab1 {[%clk 0:01:22]}
22... f5 {[%clk 0:01:40.9]} 23. b7 {[%clk 0:01:09.7]} 1-0

[Event "*** Titled Tuesday Blitz"]
[Site "Chess.com"]
[Date "2019.03.05"]
[Round "4"]
[White "PaulfromSPb"]
[Black "MFBerna"]
[Result "1-0"]
[WhiteElo "2607"]
[BlackElo "2410"]
[TimeControl "180+2"]
[EndTime "13:53:45 PST"]
[Termination "PaulfromSPb won by resignation"]

1. e4 {[%clk 0:03:01.9]} 1... c6 {[%clk 0:03:00.7]} 2. d4 {[%clk 0:02:59.8]}
2... d5 {[%clk 0:03:02.6]} 3. Nd2 {[%clk 0:03:01.2]} 3... dxe4 {[%clk 0:03:03]}
4. Nxe4 {[%clk 0:03:03.1]} 4... Nf6 {[%clk 0:03:04.4]} 5. Nxf6+ {[%clk
0:03:04.7]} 5... exf6 {[%clk 0:03:06.3]} 6. c3 {[%clk 0:03:05.2]} 6... Bd6
{[%clk 0:03:07.5]} 7. Bd3 {[%clk 0:03:06.1]} 7... O-O {[%clk 0:03:08.9]} 8. Qc2
{[%clk 0:03:07.2]} 8... Re8+ {[%clk 0:03:06.7]} 9. Ne2 {[%clk 0:03:08.2]} 9...
h6 {[%clk 0:03:08.6]} 10. Be3 {[%clk 0:03:08.4]} 10... Be6 {[%clk 0:03:05.9]}
11. h4 {[%clk 0:03:03]} 11... Nd7 {[%clk 0:03:01.7]} 12. c4 {[%clk 0:03:00.9]}
12... Bb4+ {[%clk 0:02:53.9]} 13. Nc3 {[%clk 0:03:01.3]} 13... Nb6 {[%clk
0:02:50.4]} 14. a3 {[%clk 0:02:52]} 14... Bf8 {[%clk 0:02:25]} 15. Ne2 {[%clk
0:02:43.5]} 15... Qc7 {[%clk 0:01:31.8]} 16. O-O-O {[%clk 0:02:41.7]} 16... Nd7
{[%clk 0:01:05.4]} 17. Rhe1 {[%clk 0:02:13]} 17... Rac8 {[%clk 0:00:41.8]} 18.
Kb1 {[%clk 0:02:12.9]} 18... Qa5 {[%clk 0:00:29.8]} 19. Nf4 {[%clk 0:02:11.1]}
19... Bg4 {[%clk 0:00:23.9]} 20. f3 {[%clk 0:02:11.9]} 20... Be6 {[%clk
0:00:21.6]} 21. Nxe6 {[%clk 0:02:12.1]} 21... Rxe6 {[%clk 0:00:19.5]} 22. Bh7+
{[%clk 0:02:09.1]} 22... Kh8 {[%clk 0:00:19.9]} 23. Bf5 {[%clk 0:02:09.9]} 23...
Rd6 {[%clk 0:00:20.8]} 24. Bf4 {[%clk 0:02:08.3]} 24... Rd8 {[%clk 0:00:20.4]}
25. Bxd6 {[%clk 0:02:08]} 25... Bxd6 {[%clk 0:00:22.3]} 26. Bxd7 {[%clk
0:02:08.6]} 1-0

[Event "*** Titled Tuesday Blitz"]
[Site "Chess.com"]
[Date "2019.03.05"]
[Round "4"]
[White "Shant_Sargsyan"]
[Black "kenta1234"]
[Result "1-0"]
[WhiteElo "2920"]
[BlackElo "2597"]
[TimeControl "180+2"]
[EndTime "13:53:46 PST"]
[Termination "Shant_Sargsyan won by resignation"]

1. d4 {[%clk 0:03:01.6]} 1... Nf6 {[%clk 0:02:56.2]} 2. c4 {[%clk 0:03:02.7]}
2... g6 {[%clk 0:02:54.8]} 3. Nc3 {[%clk 0:03:04]} 3... Bg7 {[%clk 0:02:55.7]}
4. e4 {[%clk 0:03:05.2]} 4... d6 {[%clk 0:02:50.9]} 5. Be2 {[%clk 0:03:06.4]}
5... O-O {[%clk 0:02:51.9]} 6. Be3 {[%clk 0:03:08.3]} 6... c5 {[%clk 0:02:52.1]}
7. d5 {[%clk 0:03:07.5]} 7... e6 {[%clk 0:02:51.9]} 8. Nf3 {[%clk 0:03:09]} 8...
exd5 {[%clk 0:02:53.1]} 9. cxd5 {[%clk 0:03:10.9]} 9... Bg4 {[%clk 0:02:54.2]}
10. Nd2 {[%clk 0:03:12.4]} 10... Bxe2 {[%clk 0:02:55.4]} 11. Qxe2 {[%clk
0:03:14.3]} 11... a6 {[%clk 0:02:57]} 12. a4 {[%clk 0:03:15.2]} 12... Re8 {[%clk
0:02:58.9]} 13. O-O {[%clk 0:03:15.7]} 13... Nbd7 {[%clk 0:03:00]} 14. f3 {[%clk
0:03:17]} 14... Nh5 {[%clk 0:02:58.8]} 15. Nc4 {[%clk 0:03:17.8]} 15... Ne5
{[%clk 0:02:59.7]} 16. a5 {[%clk 0:03:11.8]} 16... Nxc4 {[%clk 0:02:57.9]} 17.
Qxc4 {[%clk 0:03:13.7]} 17... Be5 {[%clk 0:02:55.8]} 18. f4 {[%clk 0:03:06.9]}
18... Bxc3 {[%clk 0:02:45.8]} 19. bxc3 {[%clk 0:03:00.1]} 19... Nf6 {[%clk
0:02:44.4]} 20. e5 {[%clk 0:03:00.1]} 20... dxe5 {[%clk 0:02:44.3]} 21. Rad1
{[%clk 0:02:53.6]} 21... e4 {[%clk 0:02:39.9]} 22. Qxc5 {[%clk 0:02:50.9]} 22...
Rc8 {[%clk 0:02:39.5]} 23. Qd4 {[%clk 0:02:51.7]} 23... Ng4 {[%clk 0:02:38.7]}
24. d6 {[%clk 0:02:34.5]} 24... Qd7 {[%clk 0:02:01.9]} 25. f5 {[%clk 0:02:34]}
25... Rc6 {[%clk 0:01:54.6]} 26. Bf4 {[%clk 0:02:23.7]} 26... e3 {[%clk
0:01:51.5]} 27. Rfe1 {[%clk 0:02:19.9]} 27... Qxf5 {[%clk 0:01:42]} 28. d7
{[%clk 0:02:15.6]} 28... Rd8 {[%clk 0:01:42.6]} 29. h3 {[%clk 0:02:14.3]} 29...
Nf2 {[%clk 0:01:39]} 30. Rxe3 {[%clk 0:02:14]} 30... Re6 {[%clk 0:01:15.3]} 31.
Rxe6 {[%clk 0:02:13.1]} 31... Nxh3+ {[%clk 0:01:15.2]} 32. gxh3 {[%clk
0:02:14.2]} 32... Qxe6 {[%clk 0:01:16.5]} 33. Bc7 {[%clk 0:02:11.5]} 33... Qxh3
{[%clk 0:01:16.5]} 34. Bxd8 {[%clk 0:02:08.8]} 34... Qg3+ {[%clk 0:01:17.6]} 35.
Kf1 {[%clk 0:02:10.5]} 35... Qh3+ {[%clk 0:01:12.9]} 36. Ke1 {[%clk 0:02:12]}
36... Qh1+ {[%clk 0:01:14]} 37. Kd2 {[%clk 0:02:13.4]} 37... Qg2+ {[%clk
0:01:14.9]} 38. Kc1 {[%clk 0:02:14.7]} 1-0

[Event "*** Titled Tuesday Blitz"]
[Site "Chess.com"]
[Date "2019.03.05"]
[Round "4"]
[White "orrbaverlekszarnyon"]
[Black "Walter_White_Poland"]
[Result "0-1"]
[WhiteElo "2155"]
[BlackElo "2217"]
[TimeControl "180+2"]
[EndTime "13:53:47 PST"]
[Termination "Walter_White_Poland won by checkmate"]

1. e4 {[%clk 0:03:01.9]} 1... e5 {[%clk 0:02:59.6]} 2. Nf3 {[%clk 0:03:01.2]}
2... Nc6 {[%clk 0:03:00.7]} 3. Bc4 {[%clk 0:03:02.6]} 3... Nf6 {[%clk
0:02:59.8]} 4. d3 {[%clk 0:02:58.7]} 4... d5 {[%clk 0:03:00.6]} 5. exd5 {[%clk
0:02:59.5]} 5... Nxd5 {[%clk 0:03:02]} 6. Nc3 {[%clk 0:02:59.7]} 6... Nxc3
{[%clk 0:02:17.6]} 7. bxc3 {[%clk 0:03:01.6]} 7... h6 {[%clk 0:01:55]} 8. Qe2
{[%clk 0:02:55.1]} 8... Bd6 {[%clk 0:01:55.7]} 9. d4 {[%clk 0:02:48.6]} 9... O-O
{[%clk 0:01:55.7]} 10. Nxe5 {[%clk 0:02:40.4]} 10... Nxe5 {[%clk 0:01:44.4]} 11.
dxe5 {[%clk 0:02:42.3]} 11... Bxe5 {[%clk 0:01:45.3]} 12. O-O {[%clk 0:02:39.4]}
12... Bxc3 {[%clk 0:01:41.9]} 13. Ba3 {[%clk 0:02:35.9]} 13... Bxa1 {[%clk
0:01:39.7]} 14. Bxf8 {[%clk 0:02:36.4]} 14... Bf6 {[%clk 0:00:55.7]} 15. Ba3
{[%clk 0:02:30.3]} 15... Bf5 {[%clk 0:00:54.9]} 16. Qf3 {[%clk 0:02:24.3]} 16...
Bxc2 {[%clk 0:00:48.9]} 17. Qxb7 {[%clk 0:02:24.9]} 17... a5 {[%clk 0:00:42.4]}
18. Qc6 {[%clk 0:02:21.8]} 18... Qe8 {[%clk 0:00:19.7]} 19. Bxf7+ {[%clk
0:02:17.8]} 19... Qxf7 {[%clk 0:00:20.5]} 20. Qxc2 {[%clk 0:02:18]} 20... Bd4
{[%clk 0:00:16.3]} 21. Qc6 {[%clk 0:02:14.7]} 21... Re8 {[%clk 0:00:12.2]} 22.
Bc5 {[%clk 0:02:13.7]} 22... Qxf2+ {[%clk 0:00:11.9]} 23. Rxf2 {[%clk
0:02:01.1]} 23... Re1# {[%clk 0:00:11.4]} 0-1

[Event "*** Titled Tuesday Blitz"]
[Site "Chess.com"]
[Date "2019.03.05"]
[Round "4"]
[White "r31415"]
[Black "Romn69"]
[Result "1-0"]
[WhiteElo "2351"]
[BlackElo "2225"]
[TimeControl "180+2"]
[EndTime "13:53:52 PST"]
[Termination "r31415 won by resignation"]

1. e4 {[%clk 0:03:01.9]} 1... c5 {[%clk 0:03:00.3]} 2. Nf3 {[%clk 0:03:03.1]}
2... e6 {[%clk 0:03:01.1]} 3. d4 {[%clk 0:03:04.7]} 3... cxd4 {[%clk 0:03:02.1]}
4. Nxd4 {[%clk 0:03:06.6]} 4... Nc6 {[%clk 0:03:03]} 5. Nb5 {[%clk 0:03:07]}
5... Nf6 {[%clk 0:03:02.5]} 6. N1c3 {[%clk 0:03:07.4]} 6... Bb4 {[%clk
0:03:03.2]} 7. a3 {[%clk 0:03:08.1]} 7... Bxc3+ {[%clk 0:03:03.7]} 8. Nxc3
{[%clk 0:03:10]} 8... d5 {[%clk 0:03:04.8]} 9. exd5 {[%clk 0:03:11.3]} 9... exd5
{[%clk 0:03:06.2]} 10. Bd3 {[%clk 0:03:12.4]} 10... d4 {[%clk 0:03:04.3]} 11.
Ne2 {[%clk 0:03:08.6]} 11... O-O {[%clk 0:03:04]} 12. Bg5 {[%clk 0:03:05.3]}
12... h6 {[%clk 0:03:01]} 13. Bh4 {[%clk 0:03:06.1]} 13... Bf5 {[%clk 0:02:54]}
14. O-O {[%clk 0:03:05.9]} 14... Bxd3 {[%clk 0:02:53.6]} 15. Qxd3 {[%clk
0:03:06.2]} 15... Qd6 {[%clk 0:02:54.4]} 16. Rad1 {[%clk 0:02:58.6]} 16... Rad8
{[%clk 0:02:53]} 17. Rfe1 {[%clk 0:02:46.5]} 17... g5 {[%clk 0:02:02.1]} 18. Bg3
{[%clk 0:02:45.7]} 18... Qd5 {[%clk 0:02:02.8]} 19. f3 {[%clk 0:02:21.4]} 19...
Rd7 {[%clk 0:01:47.6]} 20. Bf2 {[%clk 0:02:02.3]} 20... Rfd8 {[%clk 0:01:45.7]}
21. Ng3 {[%clk 0:01:58.9]} 21... Kf8 {[%clk 0:01:00.5]} 22. Nf5 {[%clk
0:01:46.7]} 22... Ng8 {[%clk 0:01:00.6]} 23. a4 {[%clk 0:01:48.1]} 23... Ne5
{[%clk 0:00:58.3]} 24. Qa3+ {[%clk 0:01:47.1]} 1-0

[Event "*** Titled Tuesday Blitz"]
[Site "Chess.com"]
[Date "2019.03.05"]
[Round "4"]
[White "XiaoKangZhong"]
[Black "chesstatour"]
[Result "1-0"]
[WhiteElo "2108"]
[BlackElo "2010"]
[TimeControl "180+2"]
[EndTime "13:53:56 PST"]
[Termination "XiaoKangZhong won on time"]

1. e4 {[%clk 0:03:01.9]} 1... c6 {[%clk 0:03:00.4]} 2. Ne2 {[%clk 0:03:00.2]}
2... d5 {[%clk 0:03:00.4]} 3. e5 {[%clk 0:03:01.7]} 3... c5 {[%clk 0:02:54.5]}
4. c3 {[%clk 0:03:01.4]} 4... Nc6 {[%clk 0:02:51.9]} 5. d4 {[%clk 0:03:02]} 5...
e6 {[%clk 0:02:33.2]} 6. Be3 {[%clk 0:03:01.5]} 6... cxd4 {[%clk 0:02:31.7]} 7.
cxd4 {[%clk 0:03:02.1]} 7... Nge7 {[%clk 0:02:32.4]} 8. g3 {[%clk 0:03:02.3]}
8... Nf5 {[%clk 0:02:32]} 9. Bg2 {[%clk 0:03:01.2]} 9... Bb4+ {[%clk 0:02:16.4]}
10. Nbc3 {[%clk 0:03:02]} 10... Bd7 {[%clk 0:02:04]} 11. O-O {[%clk 0:03:02.7]}
11... O-O {[%clk 0:01:52.8]} 12. a3 {[%clk 0:03:02.3]} 12... Bxc3 {[%clk
0:01:50.2]} 13. bxc3 {[%clk 0:03:01.3]} 13... Na5 {[%clk 0:01:50.3]} 14. Bh3
{[%clk 0:02:54.9]} 14... Nxe3 {[%clk 0:01:48.6]} 15. fxe3 {[%clk 0:02:54.8]}
15... Bb5 {[%clk 0:01:41.3]} 16. Bg2 {[%clk 0:02:54.8]} 16... Rc8 {[%clk
0:01:39.3]} 17. Rc1 {[%clk 0:02:52.9]} 17... Bxe2 {[%clk 0:01:22.5]} 18. Qxe2
{[%clk 0:02:53.2]} 18... Qc7 {[%clk 0:00:51.8]} 19. e4 {[%clk 0:02:51.6]} 19...
Nb3 {[%clk 0:00:31.8]} 20. Rb1 {[%clk 0:02:36.2]} 20... Qxc3 {[%clk 0:00:29.8]}
21. exd5 {[%clk 0:02:25.6]} 21... Nxd4 {[%clk 0:00:17.8]} 22. Qf2 {[%clk
0:02:21.2]} 22... exd5 {[%clk 0:00:12.5]} 23. Bxd5 {[%clk 0:02:21.7]} 23... Kh8
{[%clk 0:00:11.7]} 24. Rxb7 {[%clk 0:02:22.4]} 24... Qd3 {[%clk 0:00:09.5]} 25.
Rxf7 {[%clk 0:02:09.2]} 25... Rxf7 {[%clk 0:00:07.4]} 26. Qxf7 {[%clk
0:02:09.2]} 26... Ne2+ {[%clk 0:00:06.9]} 27. Kf2 {[%clk 0:02:10.4]} 1-0